fUSD/lending_fUSD_20251128
["ID","MTS","AMOUNT","RATE_DAILY","PERIOD"]
[395044127,1764370241540,-409.38822552,0.00016273,2]
[395044128,1764370241550,-162.78912233,0.00016273,2]
[395044129,1764370241560,-150.0,0.00016276,2]
[395044130,1764370241569,-150.0,0.00016278,2]
[395044131,1764370241579,-1234.88,0.00016281,2]
[395044132,1764370241588,-150.0,0.00016289,2]
[395044133,1764370241598,-151.0,0.00016291,2]
[395044134,1764370241608,-150.0,0.00016296,2]
[395044135,1764370241622,-150.0,0.00016299,2]
[395044136,1764370241631,-150.0,0.00016309,2]
[395044137,1764370241641,-150.0,0.00016312,2]
[395044138,1764370241650,-150.0,0.00016312,2]
[395044139,1764370241660,-150.0,0.00016321,2]
[395044140,1764370241669,-150.0,0.00016329,2]
[395044141,1764370241678,-150.0,0.00016332,2]
[395044142,1764370241689,-150.0,0.00016344,2]
[395044143,1764370241698,-150.0,0.00016345,2]
[395044144,1764370241708,-150.0,0.00016349,2]
[395044145,1764370241718,-150.0,0.00016351,2]
[395044146,1764370241727,-150.0,0.00016353,2]
[395044147,1764370241737,-17772.31314166,0.00016362,2]
[395044148,1764370241746,-150.0,0.00016364,2]
[395044149,1764370241755,-150.0,0.00016367,2]
[395044150,1764370241765,-150.0,0.00016368,2]
[395044151,1764370241774,-150.0,0.00016369,2]
[395044152,1764370241784,-737.2,0.00016372,2]
[395044153,1764370241794,-500.0,0.00016373,2]
[395044154,1764370241803,-500.0,0.00016373,2]
[395044155,1764370241813,-500.0,0.00016373,2]
[395044156,1764370241823,-579.24594614,0.00016373,2]
[395044157,1764370241832,-150.0,0.00016379,2]
[395044158,1764370241843,-150.0,0.00016388,2]
[395044159,1764370241852,-150.0,0.00016389,2]
[395044160,1764370241861,-150.0,0.0001639,2]
[395044161,1764370241871,-150.0,0.00016398,2]
[395044162,1764370241880,-150.0,0.00016404,2]
[395044163,1764370241890,-150.0,0.00016408,2]
[395044164,1764370241900,-150.0,0.00016412,2]
[395044165,1764370241910,-150.0,0.00016413,2]
[395044166,1764370241921,-1608.0,0.00016426,2]
[395044167,1764370241931,-150.0,0.00016428,2]
[395044168,1764370241940,-150.0,0.0001643,2]
[395044169,1764370241950,-150.0,0.00016435,2]
[395044170,1764370241959,-600.0,0.00016438,2]
[395044171,1764370241968,-3304.26,0.00016438,2]
[395044172,1764370241977,-151.0,0.00016438,2]
[395044173,1764370241987,-195.914199,0.00016438,2]
[395044174,1764370241997,-150.0,0.0001644,2]
[395044175,1764370242007,-150.0,0.00016447,2]
[395044176,1764370242016,-150.0,0.00016448,2]
[395044177,1764370242026,-150.0,0.00016451,2]
[395044178,1764370242036,-17772.31314166,0.00016452,2]
[395044179,1764370242046,-150.0,0.00016457,2]
[395044180,1764370242057,-162.75475319,0.00016466,2]
[395044181,1764370242067,-150.0,0.00016468,2]
[395044182,1764370242077,-150.0,0.00016469,2]
[395044183,1764370242086,-150.0,0.00016476,2]
[395044184,1764370242096,-150.0,0.0001648,2]
[395044185,1764370242106,-150.0,0.0001648,2]
[395044186,1764370242116,-150.0,0.00016488,2]
[395044187,1764370242125,-500.0,0.00016496,2]
[395044188,1764370242134,-300.0,0.00016501,2]
[395044189,1764370242144,-300.0,0.00016501,2]
[395044190,1764370242154,-300.0,0.00016501,2]
[395044191,1764370242163,-250.0,0.00016501,2]
[395044193,1764370242173,-150.0,0.00016503,2]
[395044194,1764370242183,-150.0,0.00016508,2]
[395044195,1764370242192,-150.0,0.00016509,2]
[395044196,1764370242202,-150.0,0.00016512,2]
[395044197,1764370242211,-150.0,0.00016514,2]
[395044198,1764370242221,-150.0,0.00016525,2]
[395044199,1764370242230,-150.0,0.00016528,2]
[395044200,1764370242240,-17772.31314166,0.00016541,2]
[395044201,1764370242250,-189.34203536,0.00016548,2]
[395044202,1764370242260,-210.34391531,0.00016548,2]
[395044203,1764370242270,-153.23992756,0.00016548,2]
[395044204,1764370242280,-263.60243944,0.00016548,2]
[395044205,1764370242290,-288.46551654,0.00016548,2]
[395044206,1764370242299,-150.50740982,0.00016548,2]
[395044207,1764370242308,-151.48800402,0.00016548,2]
[395044208,1764370242318,-150.00000001,0.00016548,2]
[395044209,1764370242327,-228.81950862,0.00016548,2]
[395044210,1764370242337,-156.47809857,0.00016548,2]
[395044211,1764370242346,-161.65419062,0.00016548,2]
[395044212,1764370242356,-152.00272823,0.00016548,2]
[395044213,1764370242365,-226.45951109,0.00016548,2]
[395044214,1764370242374,-2594.0,0.00016584,2]
[395044215,1764370242386,-206.58411207,0.00016621,2]
[395044217,1764370242396,-500.0,0.00016621,2]
[395044218,1764370242405,-1000.0,0.00016621,2]
[395044219,1764370242416,-1000.0,0.00016621,2]
[395044220,1764370242425,-1000.0,0.00016621,2]
[395044221,1764370242434,-1000.0,0.00016621,2]
[395044222,1764370242444,-1000.0,0.00016621,2]
[395044223,1764370242454,-245.44865078,0.00016621,2]
[395044224,1764370242465,-1018.75704326,0.00016621,2]
[395044225,1764370242475,-17772.31314166,0.00016631,2]
[395044226,1764370242486,-583.04801042,0.00016644,2]
[395044227,1764370242495,-165.57,0.00016657,2]
[395044228,1764370242504,-181.47567291,0.0001666,2]
[395044229,1764370242514,-1608.0,0.00016677,2]
[395044230,1764370242523,-152.0,0.00016705,2]
[395044231,1764370242533,-1413.11896092,0.00016706,2]
[395044232,1764370242543,-600.0,0.00016712,2]
[395044233,1764370242552,-1000.0,0.00016721,2]
[395044234,1764370242561,-500.0,0.00016721,2]
[395044235,1764370242571,-1000.0,0.00016721,2]
[395044236,1764370242581,-17772.31314166,0.00016721,2]
[395044237,1764370242591,-17772.31314166,0.0001681,2]
[395044238,1764370242602,-389.234,0.00016817,2]
[395044239,1764370242613,-909.0,0.00016817,2]
[395044240,1764370242626,-1193.0,0.00016817,2]
[395044241,1764370242635,-255.238,0.00016817,2]
[395044242,1764370242647,-2185.775,0.00016817,2]
[395044243,1764370242657,-561.0,0.00016817,2]
[395044244,1764370242666,-6504.0,0.00016817,2]
[395044245,1764370242676,-987.452036,0.00016821,2]
[395044246,1764370242685,-504.56072221,0.00016821,2]
[395044247,1764370242695,-1000.0,0.00016821,2]
[395044248,1764370242705,-1000.0,0.00016821,2]
[395044249,1764370242715,-499.57808836,0.00016821,2]
[395044250,1764370242725,-1608.0,0.00016846,2]
[395044251,1764370242734,-501.29612082,0.00016873,2]
[395044252,1764370242744,-500.0,0.00016873,2]
[395044253,1764370242753,-535.09905038,0.00016873,2]
[395044254,1764370242763,-10327.08856146,0.0001689,2]
[395044255,1764370242773,-192.51418077,0.00016898,2]
[395044256,1764370242782,-737.2,0.00016899,2]
[395044257,1764370242792,-300.0,0.00016899,2]
[395044258,1764370242806,-9398.3847,0.000169,2]
[395044259,1764370242815,-5333.0073,0.000169,2]
[395044260,1764370242825,-1000.0,0.000169,2]
[395044261,1764370242835,-10000.0,0.000169,2]
[395044262,1764370242845,-23454.80475264,0.000169,2]
[395044263,1764370242854,-17772.31314166,0.000169,2]
[395044264,1764370242864,-205.20681633,0.000169,2]
[395044265,1764370242874,-1440.34750897,0.000169,2]
[395044266,1764370242884,-192.51418077,0.000169,2]
[395044267,1764370242894,-176.93190727,0.000169,2]
[395044268,1764370242903,-317.02642804,0.000169,2]
[395044269,1764370242913,-1000.0,0.00016921,2]
[395044270,1764370242923,-1000.0,0.00016921,2]
[395044271,1764370242933,-55642.0,0.00016959,2]
[395044272,1764370242942,-500.0,0.00016973,2]
[395044273,1764370242952,-600.0,0.00016986,2]
[395044274,1764370242962,-293.0,0.0001699,2]
[395044275,1764370242971,-1088.2883743,0.0001699,2]
[395044276,1764370242981,-1088.2883743,0.0001699,2]
[395044277,1764370242991,-1088.2883743,0.0001699,2]
[395044278,1764370243001,-737.2,0.00016997,2]
[395044279,1764370243011,-737.2,0.00016997,2]
[395044280,1764370243021,-414431.7470763,0.00016998,2]
[395044281,1764370243031,-336.3740382,0.00016998,2]
[395044282,1764370243040,-22408.0499518,0.00016998,2]
[395044283,1764370243050,-3102.8138226,0.00016998,2]
[395044284,1764370243060,-500.0,0.00016999,2]
[395044285,1764370243069,-500.0,0.00016999,2]
[395044286,1764370243079,-500.0,0.00016999,2]
[395044287,1764370243089,-500.0,0.00016999,2]
[395044288,1764370243099,-500.0,0.00016999,2]
[395044289,1764370243108,-500.0,0.00016999,2]
[395044290,1764370243118,-500.0,0.00016999,2]
[395044291,1764370243127,-500.0,0.00016999,2]
[395044292,1764370243137,-500.0,0.00016999,2]
[395044293,1764370243147,-179.56772046,0.00016999,2]
[395044294,1764370243157,-500.0,0.00016999,2]
[395044295,1764370243167,-500.0,0.00016999,2]
[395044296,1764370243176,-500.0,0.00016999,2]
[395044297,1764370243186,-395.99185212,0.00016999,2]
[395044298,1764370243196,-535.46566359,0.00016999,2]
[395044299,1764370243206,-500.0,0.00016999,2]
[395044300,1764370243216,-500.0,0.00016999,2]
[395044301,1764370243225,-500.0,0.00016999,2]
[395044302,1764370243234,-500.0,0.00016999,2]
[395044303,1764370243244,-737.2,0.00016999,2]
[395044304,1764370243253,-737.2,0.00016999,2]
[395044305,1764370243262,-737.2,0.00016999,2]
[395044306,1764370243272,-737.2,0.00016999,2]
[395044307,1764370243282,-737.2,0.00016999,2]
[395044308,1764370243291,-737.2,0.00016999,2]
[395044309,1764370243301,-737.2,0.00016999,2]
[395044310,1764370243311,-737.2,0.00016999,2]
[395044311,1764370243320,-737.2,0.00016999,2]
[395044312,1764370243330,-737.2,0.00016999,2]
[395044313,1764370243340,-737.2,0.00016999,2]
[395044314,1764370243350,-737.2,0.00016999,2]
[395044315,1764370243360,-737.2,0.00016999,2]
[395044316,1764370243369,-737.2,0.00016999,2]
[395044317,1764370243379,-737.2,0.00016999,2]
[395044318,1764370243389,-737.2,0.00016999,2]
[395044319,1764370243398,-737.3138471,0.00016999,2]
[395044320,1764370243407,-500.0,0.00016999,2]
[395044321,1764370243417,-517.07690042,0.00016999,2]
[395044322,1764370243427,-1659809.59478796,0.00017,2]
[395044323,1764370243437,-224625.95135425,0.00017,2]
[395044324,1764370243446,-1756359.09294336,0.00017,2]
[395044325,1764370243456,-657213.39388024,0.00017,2]
[395044326,1764370245341,-451.724,0.00017,2]
[395044327,1764370245354,-605.80779999,0.00017,2]
[395044328,1764370245365,-5645.51735806,0.00017,2]
[395044329,1764370245383,-452.45198606,0.00017,2]
[395044330,1764370245432,-700.53782515,0.00017,2]
[395044331,1764370245497,-199396.27272823,0.00017,2]
[395044332,1764370245506,-267216.71419902,0.00017,2]
[395044333,1764370245517,-1350.77781384,0.00017,2]
[395044337,1764370246772,-264.57538388,0.00017,2]
[395044338,1764370246791,-317.64397191,0.00017,2]
[395044339,1764370246802,-2709.64385445,0.00017,2]
[395044340,1764370246831,-476.81484365,0.00017,2]
[395044341,1764370246909,-421.265,0.00017,2]
[395044342,1764370246920,-253.52,0.00017,2]
[395044350,1764370942359,166.66,0.00014649,2]
[395044351,1764370942586,166.66,0.00014957,2]
[395044352,1764371135887,250.0,0.00014869,2]
[395044354,1764371183908,200.1744367,0.00014795,2]
[395044355,1764371198949,1150.0,0.00014858,2]
[395044418,1764371418533,364.14,0.00014747,2]
[395044419,1764371430309,188.82551623,0.00014916,2]
[395044420,1764371431566,-475.62,0.00015009,2]
[395044421,1764371431680,-1464.27,0.00015009,2]
[395044422,1764371431689,-194.66785155,0.00015016,2]
[395044423,1764371431699,-1000.0,0.00015116,2]
[395044424,1764371431708,-166.66,0.00015266,2]
[395044425,1764371431717,-1200.0,0.00015287,2]
[395044426,1764371431726,-300.0,0.00015287,2]
[395044427,1764371431735,-1200.0,0.00015287,2]
[395044428,1764371431744,-150.00000001,0.00015288,2]
[395044429,1764371431754,-150.0,0.00015288,2]
[395044430,1764371431763,-150.0,0.00015288,2]
[395044431,1764371431772,-150.0,0.00015288,2]
[395044448,1764371432066,-150.0,0.00015288,2]
[395044449,1764371432084,-150.0,0.00015288,2]
[395044450,1764371432094,-150.0,0.00015288,2]
[395044451,1764371432103,-150.0,0.00015288,2]
[395044452,1764371432112,-150.00000001,0.00015288,2]
[395044453,1764371432121,-105.64907552,0.00015288,2]
[395044454,1764371432133,-44.35092448,0.00015288,2]
[395044455,1764371432142,-150.00000001,0.00015288,2]
[395044456,1764371432151,-150.0,0.00015288,2]
[395044457,1764371432160,-150.0,0.00015332,2]
[395044458,1764371432170,-46.91891111,0.00015377,2]
[395044512,1764371438425,-103.08108889,0.00015377,2]
[395044514,1764371438435,-150.0,0.00015422,2]
[395044516,1764371438444,-150.0,0.00015466,2]
[395044518,1764371438454,-150.0,0.00015511,2]
[395044520,1764371438464,-11.03058608,0.00015546,3]
[395044522,1764371438486,-335.79258,0.00015546,3]
[395044523,1764371438563,-652.17683392,0.00015546,3]
[395044524,1764371438572,-150.0,0.00015556,2]
[395044525,1764371438581,-166.66,0.00015574,2]
[395044526,1764371438590,-2000.0,0.00015594,2]
[395044527,1764371438600,-150.0,0.00015601,2]
[395044528,1764371438609,-150.0,0.00015645,2]
[395044529,1764371438618,-150.0,0.0001569,2]
[395044530,1764371438628,-168.0,0.00015698,2]
[395044531,1764371438638,-150.0,0.00015735,2]
[395044532,1764371438647,-150.0,0.00015779,2]
[395044533,1764371438656,-319.73019258,0.00015784,2]
[395044538,1764371439873,-206.87980742,0.00015784,2]
[395044539,1764371439883,-140.17413458,0.00015804,2]
[395044540,1764371439894,-14.5105529,0.00015804,2]
[395044541,1764371439904,-3547.4894271,0.00015804,2]
[395044542,1764371439915,-3483.364536,0.00015804,2]
[395044543,1764371439934,-963.44211635,0.00015804,2]
[395044544,1764371439945,-551.99799986,0.00015804,2]
[395044545,1764371439961,-12563.03019812,0.00015804,2]
[395044546,1764371439970,-340.46647592,0.00015804,2]
[395044547,1764371439979,-194.66785154,0.00015813,2]
[395044548,1764371439989,-150.0,0.00015824,2]
[395044549,1764371439998,-150.0,0.00015869,2]
[395044550,1764371440007,-300.0,0.00015869,2]
[395044551,1764371440017,-166.66,0.00015883,2]
[395044552,1764371440026,-467.21206565,0.00015903,2]
[395044553,1764371440036,-500.0,0.00015903,2]
[395044554,1764371440045,-500.0,0.00015903,2]
[395044555,1764371440055,-500.0,0.00015903,2]
[395044556,1764371440064,-500.0,0.00015903,2]
[395044557,1764371440073,-500.0,0.00015903,2]
[395044558,1764371440082,-500.0,0.00015903,2]
[395044559,1764371440092,-500.0,0.00015903,2]
[395044560,1764371440102,-500.0,0.00015903,2]
[395044561,1764371440112,-500.0,0.00015903,2]
[395044562,1764371440121,-500.0,0.00015903,2]
[395044563,1764371440130,-500.0,0.00015903,2]
[395044564,1764371440140,-500.0,0.00015903,2]
[395044565,1764371440149,-500.0,0.00015903,2]
[395044566,1764371440159,-500.0,0.00015903,2]
[395044568,1764371440168,-500.0,0.00015903,2]
[395044570,1764371440178,-500.0,0.00015903,2]
[395044571,1764371440187,-500.0,0.00015903,2]
[395044573,1764371440197,-500.0,0.00015903,2]
[395044575,1764371440207,-500.0,0.00015903,2]
[395044576,1764371440216,-500.0,0.00015903,2]
[395044577,1764371440226,-500.0,0.00015903,2]
[395044578,1764371440235,-500.0,0.00015903,2]
[395044579,1764371440245,-500.0,0.00015903,2]
[395044580,1764371440255,-500.0,0.00015903,2]
[395044581,1764371440264,-500.0,0.00015903,2]
[395044582,1764371440273,-500.0,0.00015903,2]
[395044583,1764371440283,-500.0,0.00015903,2]
[395044584,1764371440294,-500.0,0.00015903,2]
[395044586,1764371440304,-500.0,0.00015903,2]
[395044588,1764371440747,-500.0,0.00015903,2]
[395044589,1764371440762,-500.0,0.00015903,2]
[395044590,1764371440771,-500.0,0.00015903,2]
[395044591,1764371440780,-500.0,0.00015903,2]
[395044592,1764371440790,-500.0,0.00015903,2]
[395044593,1764371440799,-500.0,0.00015903,2]
[395044594,1764371440809,-500.0,0.00015903,2]
[395044595,1764371440819,-500.0,0.00015903,2]
[395044596,1764371440828,-592.71278573,0.00015903,2]
[395044597,1764371440837,-388.24273944,0.00015903,2]
[395044598,1764371440846,-500.0,0.00015903,2]
[395044599,1764371440855,-500.0,0.00015903,2]
[395044600,1764371440865,-500.0,0.00015903,2]
[395044601,1764371440875,-500.0,0.00015903,2]
[395044602,1764371440885,-607.85889011,0.00015903,2]
[395044603,1764371440893,-500.0,0.00015903,2]
[395044604,1764371440903,-500.0,0.00015903,2]
[395044605,1764371440912,-500.0,0.00015903,2]
[395044606,1764371440921,-500.0,0.00015903,2]
[395044607,1764371440930,-500.0,0.00015903,2]
[395044608,1764371440939,-500.0,0.00015903,2]
[395044609,1764371440951,-500.0,0.00015903,2]
[395044610,1764371440960,-500.0,0.00015903,2]
[395044611,1764371440970,-500.0,0.00015903,2]
[395044612,1764371440979,-500.0,0.00015903,2]
[395044613,1764371440988,-500.0,0.00015903,2]
[395044614,1764371440998,-500.0,0.00015903,2]
[395044615,1764371441007,-500.0,0.00015903,2]
[395044616,1764371441016,-500.0,0.00015903,2]
[395044617,1764371441025,-500.0,0.00015903,2]
[395044618,1764371441034,-500.0,0.00015903,2]
[395044619,1764371441043,-500.0,0.00015903,2]
[395044620,1764371441052,-500.0,0.00015903,2]
[395044621,1764371441062,-500.0,0.00015903,2]
[395044622,1764371441072,-500.0,0.00015903,2]
[395044623,1764371441081,-309.27127857,0.00015903,2]
[395044624,1764371441091,-500.0,0.00015903,2]
[395044625,1764371441100,-500.0,0.00015903,2]
[395044626,1764371441109,-500.0,0.00015903,2]
[395044627,1764371441118,-500.0,0.00015903,2]
[395044628,1764371441128,-500.0,0.00015903,2]
[395044629,1764371441140,-500.0,0.00015903,2]
[395044630,1764371441149,-500.0,0.00015903,2]
[395044631,1764371441159,-500.0,0.00015903,2]
[395044632,1764371441168,-500.0,0.00015903,2]
[395044633,1764371441178,-500.0,0.00015903,2]
[395044634,1764371441189,-500.0,0.00015903,2]
[395044635,1764371441199,-500.0,0.00015903,2]
[395044636,1764371441208,-500.0,0.00015903,2]
[395044637,1764371441218,-500.0,0.00015903,2]
[395044638,1764371441227,-500.0,0.00015903,2]
[395044639,1764371441236,-500.0,0.00015903,2]
[395044640,1764371441245,-500.0,0.00015903,2]
[395044641,1764371441255,-500.0,0.00015903,2]
[395044642,1764371441263,-176.18542558,0.00015903,2]
[395044643,1764371441272,-500.0,0.00015903,2]
[395044644,1764371441282,-500.0,0.00015903,2]
[395044645,1764371441292,-500.0,0.00015903,2]
[395044646,1764371441301,-500.0,0.00015903,2]
[395044647,1764371441310,-500.0,0.00015903,2]
[395044648,1764371441319,-500.0,0.00015903,2]
[395044649,1764371441329,-500.0,0.00015903,2]
[395044650,1764371441338,-500.0,0.00015903,2]
[395044651,1764371441347,-500.0,0.00015903,2]
[395044652,1764371441356,-500.0,0.00015903,2]
[395044653,1764371441369,-287.24322792,0.00015903,2]
[395044654,1764371441378,-500.0,0.00015903,2]
[395044655,1764371441387,-500.0,0.00015903,2]
[395044656,1764371441396,-500.0,0.00015903,2]
[395044657,1764371441405,-251.53241335,0.00015903,2]
[395044658,1764371441415,-501.32996164,0.00015903,2]
[395044659,1764371441424,-1000.0,0.00015904,2]
[395044660,1764371441432,-387802.59191729,0.00015904,2]
[395044661,1764371441457,-302.5,0.00015904,2]
[395044662,1764371441539,-502.7286811,0.00015904,2]
[395044663,1764371441551,-926.039998,0.00015904,2]
[395044666,1764371442818,-759.87369163,0.00015904,2]
[395044667,1764371442830,-608.46163062,0.00015904,2]
[395044668,1764371443039,-3265.8690525,0.00015904,2]
[395044670,1764371446080,-446.54033922,0.00015904,2]
[395044671,1764371446092,-1906.0,0.00015904,2]
[395044672,1764371446114,-934.60312988,0.00015904,2]
[395044673,1764371446126,-4991.01675816,0.00015904,2]
[395044682,1764372146439,1000.0,0.00025,120]
[395044684,1764372204029,1013.889,0.00025,120]
[395044689,1764372280052,560.48,0.00013699,2]
[395044703,1764372360777,13444.67429496,8e-05,2]
[395044739,1764372510203,30227.4902573,0.00015,4]
[395044740,1764372510227,34482.60742872,0.00015,4]
[395044741,1764372510251,100000.0,0.00015,4]
[395044742,1764372510275,100000.0,0.00015,4]
[395044743,1764372510305,100000.0,0.00015,4]
[395044744,1764372510332,100000.0,0.00015,4]
[395044745,1764372510356,2090.49323311,0.00015,4]
[395044748,1764372535656,520.0,0.0002,30]
[395044894,1764372590060,5822.03,0.00014885,2]
[395044905,1764372631706,-150.0,0.00015288,2]
[395044906,1764372631715,-150.0,0.00015358,2]
[395044907,1764372631726,-168.0,0.00015402,2]
[395044908,1764372631736,-150.0,0.00015429,2]
[395044910,1764372631745,-150.0,0.000155,2]
[395044912,1764372631754,-68.50840002,0.00015511,2]
[395044914,1764372631765,-131.49159998,0.00015511,2]
[395044916,1764372631774,-150.0,0.00015571,2]
[395044917,1764372631784,-150.0,0.00015642,2]
[395044918,1764372631792,-249.47079747,0.00015658,2]
[395044919,1764372631803,-1165.45444272,0.00015658,2]
[395044920,1764372631813,-150.0,0.00015712,2]
[395044921,1764372631822,-298.49585688,0.0001574,2]
[395044922,1764372631833,-668.14234312,0.0001574,2]
[395044923,1764372631842,-150.0,0.00015783,2]
[395044924,1764372631851,-168.0,0.00015797,2]
[395044925,1764372631864,-300.0,0.00015801,2]
[395044926,1764372631873,-300.0,0.00015801,2]
[395044927,1764372631882,-1200.0,0.00015801,2]
[395044928,1764372631892,-300.0,0.00015801,2]
[395044929,1764372631902,-252.0,0.00015801,2]
[395044930,1764372631911,-154.68468747,0.00015802,2]
[395044931,1764372631920,-835.23863255,0.00015802,2]
[395044932,1764372631941,-10515.14710352,0.00015802,2]
[395044933,1764372631963,-515.71559737,0.00015802,2]
[395044934,1764372631974,-1695.3400318,0.00015802,2]
[395044935,1764372631985,-835.19021143,0.00015802,2]
[395044936,1764372631996,-567.05475244,0.00015802,2]
[395044937,1764372632008,-4034.70552055,0.00015802,2]
[395044938,1764372632017,-1172.31986969,0.00015802,2]
[395044939,1764372632035,-58.61683498,0.00015802,2]
[395044940,1764372632044,-489.38314284,0.00015802,2]
[395044941,1764372632053,-150.0,0.00015854,2]
[395044942,1764372632062,-168.0,0.00015864,2]
[395044943,1764372632071,-1107.00472776,0.00015895,2]
[395044944,1764372632080,-918.87490176,0.00015895,2]
[395044945,1764372632091,-323.44091325,0.00015895,2]
[395044946,1764372632101,-49.49284995,0.00015895,2]
[395044947,1764372632111,-271.76991761,0.00015895,2]
[395044948,1764372632120,-327.04844596,0.00015895,2]
[395044949,1764372632130,-224.35409692,0.00015895,2]
[395044950,1764372632152,-275.64590308,0.00015895,2]
[395044951,1764372632162,-625.50122307,0.00015895,2]
[395044952,1764372632172,-194.61471259,0.00015895,2]
[395044953,1764372632182,-500.0,0.00015895,2]
[395044954,1764372632191,-500.0,0.00015895,2]
[395044955,1764372632200,-372.36024484,0.00015895,2]
[395044956,1764372632210,-500.0,0.00015895,2]
[395044958,1764372632219,-500.0,0.00015895,2]
[395044960,1764372632228,-500.0,0.00015895,2]
[395044962,1764372632237,-500.0,0.00015895,2]
[395044963,1764372632247,-500.0,0.00015895,2]
[395044965,1764372632257,-500.0,0.00015895,2]
[395044967,1764372632266,-500.0,0.00015895,2]
[395044969,1764372632275,-500.0,0.00015895,2]
[395044971,1764372632284,-3057.0961708,0.00015896,2]
[395044974,1764372632295,-290.05642929,0.00015896,2]
[395044976,1764372632306,-2065.94529364,0.00015896,2]
[395044977,1764372632317,-1644.61896634,0.00015896,2]
[395044978,1764372632327,-4839.78738895,0.00015896,2]
[395044979,1764372632338,-406.33173265,0.00015896,2]
[395044980,1764372632349,-780.71527075,0.00015896,2]
[395044981,1764372632360,-302.61183806,0.00015896,2]
[395045002,1764372637877,-9031.79916211,0.00015896,2]
[395045024,1764372637976,-946.28,0.00015896,2]
[395045027,1764372637987,-708.18114371,0.00015896,2]
[395045046,1764372638139,-373.57020428,0.00015896,2]
[395045183,1764372639963,-358.53599972,0.00015896,2]
[395045206,1764372640161,-1847.29706136,0.00015896,2]
[395045764,1764372645969,-2746.96072476,0.00015896,2]
[395045775,1764372646077,-2035.36644802,0.00015896,2]
[395045778,1764372646088,-1681.28327184,0.00015896,2]
[395045780,1764372646103,-5376.71958216,0.00015896,2]
[395049730,1764372993932,771.34618594,0.00015,10]
[395049731,1764373016563,771.15,0.00015,10]
[395049732,1764373027403,771.15,0.00015,10]
[395049733,1764373035910,771.15,0.00015,10]
[395049734,1764373042208,771.15,0.00015,10]
[395049735,1764373049138,771.15,0.00015,10]
[395049736,1764373060833,771.15,0.00015,10]
[395049737,1764373069550,771.15,0.00015,10]
[395049739,1764373096103,220.20550918,0.00014925,2]
[395049740,1764373108096,771.15,0.00015,10]
[395049741,1764373125559,771.15,0.00015,10]
[395049742,1764373133048,771.15,0.00015,10]
[395049743,1764373165167,771.15,0.00015,10]
[395049744,1764373173584,771.15,0.00015,10]
[395049745,1764373183051,771.15,0.00015,10]
[395049747,1764373500827,999.0,0.00014888,3]
[395049748,1764373505827,174.0,0.0001938,120]
[395049753,1764373612934,166.66,0.00014125,2]
[395049754,1764373613216,166.66,0.00014423,2]
[395049755,1764373613474,166.66,0.0001472,2]
[395049857,1764373828345,250.0,0.00014809,2]
[395049863,1764373831954,-188.66,0.00015015,2]
[395049864,1764373831963,-166.66,0.00015018,2]
[395049865,1764373831973,-318.11,0.00015056,2]
[395049866,1764373831982,-150.0,0.00015103,2]
[395049867,1764373831991,-166.66,0.00015315,2]
[395049868,1764373832001,-1608.0,0.00015444,2]
[395049869,1764373832010,-250.0,0.00015561,2]
[395049870,1764373832018,-925.7307,0.00015569,2]